bitfinex-derivatives/quotes_ETHF0:USTF0_20251007
["timestamp","ask_amount","ask_price","bid_price","bid_amount"]
[1759864288323,6.81282268,4483.6,4483.5,1.61531]
[1759864289228,6.58782268,4483.6,4483.5,1.61531]
[1759864289432,6.81282268,4483.6,4483.5,2.19371]
[1759864290027,6.81282268,4483.6,4483.5,2.81201]
[1759864290434,6.58782268,4483.6,4483.5,2.81201]
[1759864291238,6.58782268,4483.6,4483.5,1.61531]
[1759864292036,6.58782268,4483.6,4483.5,2.19371]
[1759864292340,6.81282268,4483.6,4483.5,2.19371]
[1759864293339,6.81282268,4483.6,4483.5,1.61531]
[1759864294337,6.58782268,4483.6,4483.5,1.61531]
[1759864294537,6.81282268,4483.6,4483.5,1.61531]
[1759864296236,6.81282268,4483.6,4483.5,2.19371]
[1759864296537,6.81282268,4483.6,4483.5,2.81201]
[1759864296736,6.81282268,4483.6,4483.5,2.19371]
[1759864297136,6.58782268,4483.6,4483.5,2.19371]
[1759864297439,6.81282268,4483.6,4483.5,2.19371]
[1759864298039,6.81282268,4483.6,4483.5,2.81201]
[1759864301241,6.81282268,4483.6,4483.5,2.19371]
[1759864303242,6.81282268,4483.6,4483.5,1.61531]
[1759864303442,6.81282268,4483.6,4483.1,0.918]
[1759864303643,6.26913144,4483.6,4483.5,0.40131]
[1759864303942,6.81237124,4483.6,4483.5,1.66781]
[1759864304338,6.58737124,4483.6,4483.5,2.29491]
[1759864304644,6.81237124,4483.6,4483.5,2.29491]
[1759864305045,6.58737124,4483.6,4483.5,2.91521]
[1759864305349,8.01497708,4483.6,4483.5,2.91521]
[1759864305645,6.81237124,4483.6,4483.5,2.91521]
[1759864307145,6.81237124,4483.6,4483.5,1.66781]
[1759864308842,6.58737124,4483.6,4483.5,1.66781]
[1759864309044,6.81237124,4483.6,4483.5,1.66781]
[1759864309253,6.58737124,4483.6,4483.5,2.28481]
[1759864309450,6.81237124,4483.6,4483.5,2.28481]
[1759864309940,6.58737124,4483.6,4483.5,2.28481]
[1759864310646,6.81237124,4483.6,4483.5,2.28481]
[1759864311146,6.81237124,4483.6,4483.5,1.66781]
[1759864311345,6.58737124,4483.6,4483.5,1.66781]
[1759864311646,6.81237124,4483.6,4483.5,2.28481]
[1759864312049,6.81237124,4483.6,4483.5,1.66781]
[1759864312544,6.81237124,4483.6,4483.4,0.40131]
[1759864312746,6.26913144,4483.6,4483.5,0.40131]
[1759864313047,6.80816226,4483.6,4483.3,0.40132]
[1759864313249,0.53903082,4483.5,4483.4,0.40131]
[1759864313652,3.42624314,4483.5,4483.4,0.40131]
[1759864313838,3.42624314,4483.5,4483.1,0.40134]
[1759864314041,0.76403082,4483.4,4483.2,0.40133]
[1759864314248,0.53903082,4483.3,4483.2,0.40133]
[1759864314448,3.41928125,4483.3,4483.0,1.2223]
[1759864314644,3.2078,4483.1,4483.0,1.62365]
[1759864314852,3.74683082,4483.1,4483.0,1.62365]
[1759864315053,6.62708125,4483.1,4483.0,1.62365]
[1759864316642,3.41928125,4483.1,4483.0,2.84205]
[1759864317152,3.41928125,4483.1,4483.0,7.84205]
[1759864317153,0.53903082,4483.1,4483.0,7.84205]
[1759864317347,0.225,4483.5,4483.4,2.48632]
[1759864317546,0.76398666,4483.5,4483.4,2.48632]
[1759864317748,3.67805402,4483.5,4483.4,2.48632]
[1759864320656,3.67805402,4483.5,4483.4,1.26792]
[1759864321949,3.67805402,4483.5,4483.1,1.00335]
[1759864321950,0.40132,4483.4,4483.1,0.40134]
[1759864322245,3.2078,4483.6,4483.2,0.40133]
[1759864322246,3.47730319,4483.3,4483.2,0.40133]
[1759864322441,3.70230319,4483.3,4483.2,0.40133]
[1759864322656,0.76398666,4483.3,4483.2,0.40133]
[1759864322955,3.70230319,4483.3,4483.2,0.40133]
[1759864324055,3.47730319,4483.3,4483.2,1.26793]
[1759864324356,3.70230319,4483.3,4483.2,1.26793]
[1759864325158,3.70230319,4483.3,4483.2,0.8666]
[1759864325354,3.70230319,4483.3,4483.2,1.26793]
[1759864327255,3.70230319,4483.3,4483.2,0.8666]
[1759864327454,3.70230319,4483.3,4483.1,0.40134]
[1759864327652,0.53898666,4483.2,4483.1,0.40134]
[1759864327850,0.76398666,4483.2,4483.1,1.26794]
[1759864328058,3.70867641,4483.2,4483.1,1.26794]
[1759864328756,3.70867641,4483.2,4483.1,0.8666]
[1759864329258,3.70867641,4483.2,4483.1,1.26794]
[1759864331257,3.48367641,4483.2,4483.1,1.88494]
[1759864331452,3.48367641,4483.2,4483.1,2.48634]
[1759864331650,0.95298019,4483.9,4483.5,1.36667]
[1759864331958,3.2078,4484.3,4484.2,2.48624]
[1759864332252,3.2078,4484.9,4484.8,2.48619]
[1759864332455,3.2078,4485.4,4485.2,2.48615]
[1759864332759,3.2078,4485.4,4485.2,2.81401746]
[1759864333055,3.2078,4485.4,4485.2,2.48615]
[1759864333452,0.225,4485.8,4485.2,7.71115]
[1759864333854,0.225,4485.8,4485.2,8.03340275]
[1759864334455,3.2078,4485.9,4485.2,8.03340275]
[1759864334660,0.225,4485.8,4485.2,8.03340275]
[1759864335362,3.2078,4485.9,4485.2,8.03340275]
[1759864335756,4.81056992,4485.9,4485.2,8.03340275]
[1759864335959,4.81056992,4485.9,4485.2,3.03340275]
[1759864336661,0.225,4485.7,4485.2,2.71115]
[1759864337955,0.225,4485.8,4485.2,2.71115]
[1759864338763,3.2078,4485.9,4485.2,7.71115]
[1759864339362,2.78363561,4487.2,4486.3,2.1065]
[1759864339363,4.81056992,4486.4,4486.3,2.1065]
[1759864339561,3.2078,4486.4,4486.3,2.1065]
[1759864340265,3.20960579,4486.4,4486.3,2.10908985]
[1759864347072,0.00180579,4486.4,4486.3,2.10908985]
[1759864354372,0.00180579,4486.4,4486.3,2.51014985]
[1759864355780,0.00180579,4486.4,4486.3,2.51114985]
[1759864357680,2.92694326,4486.4,4486.3,1.32654985]
[1759864360483,2.92694326,4486.4,4486.3,1.91604985]
[1759864361185,0.00180579,4486.4,4486.3,2.72564985]
[1759864363482,2.93977076,4486.4,4486.3,2.72564985]
[1759864364889,2.93977076,4486.4,4486.3,1.32654985]
[1759864365283,6.14757076,4486.4,4486.3,1.32654985]
[1759864368089,6.14757076,4486.4,4486.3,0.40464985]
[1759864368491,6.65336695,4486.4,4486.3,0.40464985]
[1759864370593,11.65336695,4486.4,4486.0,0.3392]
[1759864370793,0.50579619,4486.3,4486.2,0.40107]
[1759864371194,3.65722612,4486.3,4486.2,0.40107]
[1759864371698,3.65722612,4486.3,4486.2,0.40371765]
[1759864371894,3.43222612,4486.3,4486.2,0.40371765]
[1759864372098,4.05828612,4486.3,4486.2,0.00264765]
[1759864372899,0.40107,4486.1,4486.0,0.3392]
[1759864373092,1.13186619,4486.1,4486.0,0.3392]
[1759864373293,3.99579083,4486.1,4486.0,0.3392]
[1759864373699,3.99579083,4486.1,4486.0,0.34134277]
[1759864374092,3.99579083,4486.1,4486.0,0.74242277]
[1759864374599,3.99579083,4486.1,4486.0,1.57532277]
[1759864374788,3.59472083,4486.1,4486.0,1.57532277]
[1759864376690,3.36972083,4486.1,4486.0,1.57532277]
[1759864376891,3.59472083,4486.1,4486.0,1.57532277]
[1759864380603,3.99579083,4486.1,4486.0,0.34134277]
[1759864380900,3.99579083,4486.1,4486.0,1.17424277]
[1759864381104,3.99579083,4486.1,4486.0,1.57532277]
[1759864381105,3.59472083,4486.1,4486.0,1.57532277]
[1759864381298,3.36972083,4486.1,4486.0,1.57532277]
[1759864381703,3.59472083,4486.1,4486.0,1.57532277]
[1759864382600,3.99579083,4486.1,4486.0,1.57532277]
[1759864383200,3.77079083,4486.1,4486.0,1.57532277]
[1759864383505,3.59472083,4486.1,4486.0,1.57532277]
[1759864384109,3.99579083,4486.1,4486.0,1.57532277]
[1759864385007,3.77079083,4486.1,4486.0,1.57532277]
[1759864385211,3.99579083,4486.1,4486.0,1.57532277]
[1759864385809,3.77079083,4486.1,4486.0,1.57532277]
[1759864386007,3.99579083,4486.1,4486.0,1.57532277]
[1759864386208,3.77079083,4486.1,4486.0,1.57532277]
[1759864386410,3.99579083,4486.1,4486.0,1.57532277]
[1759864388605,3.36972083,4486.1,4486.0,2.13012277]
[1759864388816,3.36972083,4486.1,4486.0,2.68832277]
[1759864389112,3.59472083,4486.1,4486.0,2.68832277]
[1759864389512,3.59472083,4486.1,4486.0,1.57532277]
[1759864389810,3.59472083,4486.1,4486.0,2.68832277]
[1759864390318,3.36972083,4486.1,4486.0,2.68832277]
[1759864390615,0.00180579,4486.4,4486.3,0.40106]
[1759864390811,0.00180579,4486.4,4486.3,2.34696]
[1759864391013,3.44140437,4486.4,4486.3,2.34696]
[1759864391818,3.66640437,4486.4,4486.3,2.34696]
[1759864392011,6.87420437,4486.4,4486.3,1.78876]
[1759864392409,6.87420437,4486.4,4486.3,1.23396]
[1759864393013,6.87420437,4486.4,4486.3,2.34696]
[1759864393317,6.64920437,4486.4,4486.3,2.34696]
[1759864393518,6.87420437,4486.4,4486.3,2.34696]
[1759864396118,6.64920437,4486.4,4486.3,2.34696]
[1759864396318,6.87420437,4486.4,4486.3,2.34696]
[1759864396818,6.64920437,4486.4,4486.3,2.34696]
[1759864397217,6.87420437,4486.4,4486.3,2.34696]
[1759864398014,3.44140437,4486.4,4486.3,7.34696]
[1759864401612,3.44140437,4486.4,4486.3,2.34696]
[1759864404014,3.44140437,4486.4,4486.3,1.23396]
[1759864404216,6.64920437,4486.4,4486.3,1.23396]
[1759864407024,7.05025437,4486.4,4486.1,0.899]
[1759864407326,0.73186471,4486.3,4486.2,0.40106]
[1759864407514,0.50686471,4486.3,4486.2,1.30006]
[1759864407717,3.56331468,4486.3,4486.2,1.30006]
[1759864414127,6.77111468,4486.3,4486.2,1.30006]
[1759864414328,6.77111468,4486.3,4486.0,0.34134277]
[1759864414329,0.40107,4486.1,4486.0,0.34134277]
[1759864414528,0.40107,4486.1,4484.9,4.52631783]
[1759864414529,0.225,4486.1,4485.2,0.899]
[1759864414722,0.40115,4485.4,4485.3,0.40115]
[1759864414924,0.40115,4485.3,4485.2,0.899]
[1759864415232,3.25907497,4485.3,4485.2,0.899]
[1759864415529,3.25907497,4485.3,4485.2,0.90062789]
[1759864415927,2.85792497,4485.3,4485.2,1.30177789]
[1759864417228,3.25907497,4485.3,4485.2,1.30177789]
[1759864417431,3.25907497,4485.3,4485.2,0.40277789]
[1759864417632,3.76701587,4485.3,4485.2,0.40277789]
[1759864418026,3.76701587,4485.3,4485.2,0.00162789]
[1759864418426,3.76701587,4485.3,4485.0,1.66357]
[1759864418427,0.4012,4484.8,4484.6,0.899]
[1759864418632,0.40121,4484.6,4484.5,1.2624]
[1759864418934,3.35921695,4484.6,4484.5,1.2624]
[1759864419528,3.35921695,4484.6,4484.5,1.26524441]
[1759864420630,3.35921695,4484.6,4484.5,0.36624441]
[1759864420832,3.35921695,4484.6,4484.5,0.00284441]
[1759864423435,0.40124,4484.2,4484.1,0.40125]
[1759864423637,3.83404,4484.2,4484.1,1.21025]
[1759864423837,6.73699071,4484.2,4484.1,1.21025]
[1759864424439,6.73699071,4484.2,4484.1,1.21293311]
[1759864425238,7.24980122,4484.2,4484.1,0.81168311]
[1759864425443,7.24980122,4484.2,4484.1,1.21293311]
[1759864425646,7.24980122,4484.2,4484.1,0.00268311]
[1759864426435,7.24980122,4484.2,4484.1,0.40393311]
[1759864427042,7.24980122,4484.2,4484.1,0.00268311]
[1759864427737,6.73699071,4484.2,4484.1,0.00268311]
[1759864429148,6.33575071,4484.2,4483.5,0.349]
[1759864429349,3.2078,4483.7,4483.6,0.8865]
[1759864429548,3.8341,4483.7,4483.6,1.2878]
[1759864429750,0.4013,4483.6,4483.5,0.349]
[1759864429949,0.40132,4483.4,4483.3,0.40132]
[1759864430251,0.40132,4483.3,4483.2,1.28783]
[1759864430551,3.32523414,4483.3,4483.2,1.29046759]
[1759864430945,3.32523414,4483.3,4483.2,0.88913759]
[1759864432157,3.32523414,4483.3,4483.2,1.29046759]
[1759864432846,3.32523414,4483.3,4483.2,0.88913759]
[1759864433653,3.32523414,4483.3,4483.2,0.00263759]
[1759864434957,0.40141,4482.3,4482.2,1.28792]
[1759864435151,0.40143,4482.2,4482.1,1.28793]
[1759864435552,3.3105586,4482.2,4482.1,0.8865]
[1759864435750,3.31263728,4482.2,4482.1,0.88841945]
[1759864435957,0.40147,4481.7,4481.3,0.8865]
[1759864436256,6.28840867,4481.6,4481.5,1.2148]
[1759864436456,6.28840867,4481.6,4481.5,0.3283]
[1759864436457,6.68988867,4481.6,4481.5,0.3283]
[1759864436859,6.68988867,4481.6,4481.5,1.21748705]
[1759864438247,6.68988867,4481.6,4481.5,0.33098705]
[1759864439458,6.68988867,4481.6,4481.5,1.21748705]
[1759864440148,6.06340867,4481.6,4481.5,1.21748705]
[1759864440353,2.85560867,4481.6,4481.5,7.30978705]
[1759864440558,3.2078,4482.1,4482.0,2.70854]
[1759864440855,6.39333025,4482.1,4482.0,2.70854]
[1759864441259,6.39333025,4482.1,4481.5,0.33098705]
[1759864441458,3.2078,4481.6,4481.0,1.2148]
[1759864441653,3.18553025,4482.1,4481.0,1.2148]
[1759864441654,3.2078,4481.1,4481.0,1.2148]
[1759864441849,0.40154,4480.9,4480.7,0.8865]
[1759864442056,3.4328,4481.1,4480.6,0.8865]
[1759864442057,0.40156,4480.7,4480.6,0.8865]
[1759864442361,3.35495599,4480.7,4480.2,0.8865]
[1759864442561,3.35495599,4480.7,4480.6,0.00245905]
[1759864442858,6.78775599,4480.7,4480.6,0.00245905]
[1759864445363,1.00392,4480.6,4479.5,1.2148]
[1759864445569,3.2078,4479.6,4479.5,1.2148]
[1759864445861,6.32213511,4479.6,4479.5,1.2148]
[1759864446262,6.32213511,4479.6,4479.5,1.21751122]
[1759864447060,6.32213511,4479.6,4479.5,0.33101122]
[1759864447263,6.32213511,4479.6,4479.0,0.3283]
[1759864447264,0.40168,4479.4,4479.1,0.8865]
[1759864447468,6.32213511,4479.6,4479.5,2.3071]
[1759864447469,6.09713511,4479.6,4479.5,2.3071]
[1759864447658,2.88933511,4479.6,4479.5,2.3071]
[1759864447864,2.88933511,4479.6,4479.5,7.3071]
[1759864448059,3.2078,4480.2,4479.5,7.3071]
[1759864448060,2.86648339,4480.1,4480.0,0.3283]
[1759864448264,0.225,4480.1,4480.0,1.7521]
[1759864448457,3.09148339,4480.1,4480.0,1.7521]
[1759864448863,2.86648339,4480.1,4480.0,1.7521]
[1759864449064,3.09148339,4480.1,4480.0,1.7521]
[1759864449864,3.09148339,4480.1,4480.0,1.2148]
[1759864451067,0.40166,4479.6,4479.5,1.2169738]
[1759864451372,6.77150525,4479.6,4479.5,1.2169738]
[1759864451572,6.77150525,4479.6,4479.5,0.0021738]
[1759864453065,1.00418,4479.5,4478.2,3.2078]
[1759864453272,3.2078,4479.1,4479.0,0.3283]
[1759864453572,6.29471196,4479.1,4479.0,1.2148]
[1759864454370,6.29471196,4479.1,4479.0,1.21734208]
[1759864455361,6.29471196,4479.1,4479.0,0.33084208]
[1759864456172,6.29471196,4479.1,4479.0,1.21734208]
[1759864457474,6.29471196,4479.1,4479.0,2.33454208]
[1759864457875,6.29471196,4479.1,4479.0,1.21734208]
[1759864458172,6.29471196,4479.1,4479.0,1.79884208]
[1759864458570,6.06971196,4479.1,4479.0,1.79884208]
[1759864458876,6.29471196,4479.1,4479.0,1.79884208]
[1759864459181,6.29471196,4479.1,4479.0,1.79984208]
[1759864459677,6.06971196,4479.1,4479.0,1.79984208]
[1759864459877,6.29471196,4479.1,4479.0,1.79984208]
[1759864460176,6.06971196,4479.1,4479.0,1.79984208]
[1759864460479,6.29471196,4479.1,4479.0,1.79984208]
[1759864460781,6.29471196,4479.1,4479.0,1.21834208]
[1759864461477,3.2078,4479.6,4479.5,1.33216]
[1759864461783,3.02533053,4479.6,4479.5,2.72296]
[1759864463173,5.95259109,4479.6,4479.5,2.72296]
[1759864463376,5.95259109,4479.6,4479.5,1.56156]
[1759864463982,5.95259109,4479.6,4479.5,2.72296]
[1759864465282,6.17759109,4479.6,4479.5,2.72296]
[1759864465874,5.95259109,4479.6,4479.5,2.72296]
[1759864467782,5.95259109,4479.6,4479.5,2.14306]
[1759864467975,5.95259109,4479.6,4479.5,2.72296]
[1759864468180,6.69390842,4479.6,4479.5,2.72296]
[1759864470088,3.54164786,4479.6,4479.5,2.72296]
[1759864470575,6.6228851,4479.6,4479.5,2.72296]
[1759864471777,6.6228851,4479.6,4479.5,2.14306]
[1759864471984,6.6228851,4479.6,4479.5,1.56156]
[1759864472878,6.6228851,4479.6,4479.5,2.14306]
[1759864473483,6.6228851,4479.6,4479.5,1.7414]
[1759864474284,6.3978851,4479.6,4479.5,2.3213]
[1759864474489,0.51631733,4479.6,4479.5,7.5463]
[1759864475784,0.51631733,4479.6,4479.5,2.5463]
[1759864477680,0.51631733,4479.6,4479.5,7.5463]
[1759864478681,11.85681233,4479.6,4479.5,0.349]
[1759864478987,11.85681233,4479.6,4479.5,1.1442]
[1759864481989,11.63181233,4479.6,4479.5,1.1442]
[1759864482190,11.85681233,4479.6,4479.5,1.1442]
[1759864482384,6.85681233,4479.6,4479.5,1.1442]
[1759864484591,6.63181233,4479.6,4479.5,1.1442]
[1759864485191,6.85681233,4479.6,4479.5,1.6876]
[1759864485893,7.25847233,4479.6,4479.5,2.08926]
[1759864486289,7.03347233,4479.6,4479.5,2.08926]
[1759864486493,7.25847233,4479.6,4479.5,2.08926]
[1759864487093,7.03347233,4479.6,4479.5,2.08926]
[1759864487290,3.42401233,4479.6,4479.5,2.08926]
[1759864487491,3.2078,4480.1,4480.0,2.02972]
[1759864487685,3.94057506,4480.1,4480.0,2.58052]
[1759864487882,6.79906048,4480.1,4480.0,2.58052]
[1759864492601,6.57406048,4480.1,4480.0,2.58052]
[1759864492803,0.50777506,4480.1,4480.0,7.80552]
[1759864493004,3.2078,4480.7,4480.6,1.71537]
[1759864493208,3.71348354,4480.7,4480.6,1.71537]
[1759864493402,6.83180332,4480.7,4480.6,1.71537]
[1759864493810,7.23336332,4480.7,4480.6,1.18397]
[1759864494011,0.40157,4480.6,4480.5,0.71588]
[1759864494208,0.90725354,4480.6,4480.5,1.49828]
[1759864494509,3.77381623,4480.6,4480.5,1.49828]
[1759864495010,3.77381623,4480.6,4480.5,1.0967]
[1759864495702,3.77381623,4480.6,4480.5,1.49828]
[1759864495903,8.37224623,4480.6,4480.0,0.3143]
[1759864496114,0.50568354,4480.5,4480.2,0.7824]
[1759864496411,3.56576857,4480.4,4480.3,1.8646]
[1759864496611,3.84645211,4480.4,4480.3,1.8646]
[1759864496808,4.07145211,4480.4,4480.3,1.8646]
[1759864497906,4.07145211,4480.4,4480.3,1.3138]
[1759864498102,4.07145211,4480.4,4480.3,0.7824]
[1759864498711,4.07171696,4480.4,4480.3,0.7824]
[1759864499112,4.07171696,4480.4,4480.3,1.3138]
[1759864501613,4.07171696,4480.4,4480.3,0.7824]
[1759864501913,0.50594839,4480.4,4480.3,7.26619]
[1759864502310,0.50594839,4480.4,4480.3,7.6555946]
[1759864504107,3.4528237,4480.4,4480.3,2.26619]
[1759864504912,3.6778237,4480.4,4480.3,1.3138]
[1759864505113,3.4528237,4480.4,4480.3,1.8646]
[1759864512520,0.50594839,4480.4,4480.3,1.8646]
[1759864513018,0.50594839,4480.4,4480.3,2.0896]
[1759864515917,3.2078,4480.7,4480.6,2.26617]
[1759864516120,3.7134061,4480.7,4480.6,2.26617]
[1759864516315,6.58029221,4480.7,4480.6,2.26617]
[1759864516516,0.5056061,4480.7,4480.6,2.49117]
[1759864516814,0.5056061,4480.7,4480.6,5.69897]
[1759864517025,3.2078,4481.7,4481.6,2.32288]
[1759864517213,1.19872981,4481.9,4481.8,1.46816]
[1759864517418,1.19872981,4482.0,4481.9,1.9214]
[1759864517618,1.19872981,4482.0,4481.9,2.1464]
[1759864517619,2.9606732,4482.0,4481.9,2.1464]
[1759864517820,1.19872981,4482.3,4482.1,1.9214]
[1759864518024,1.19872981,4482.3,4482.1,2.1464]
[1759864518226,1.19872981,4482.5,4482.1,2.1464]
[1759864518522,4.40652981,4482.6,4482.1,2.1464]
[1759864518723,4.40652981,4482.6,4482.1,2.53888247]
[1759864519113,1.19872981,4482.7,4482.2,1.00356]
[1759864519319,1.19872981,4482.8,4482.6,1.46809]
[1759864519523,1.19872981,4482.9,4482.8,1.25607]
[1759864519725,1.19872981,4482.9,4482.8,2.32277]
[1759864520019,1.19872981,4483.0,4482.9,1.3711]
[1759864520324,1.20134396,4483.0,4482.9,1.37350184]
[1759864520918,1.20134396,4483.0,4482.9,1.92380184]
[1759864521423,0.00261415,4483.0,4482.9,1.92380184]
[1759864527422,1.19872981,4483.5,4483.4,1.9214]
[1759864527723,3.2078,4483.7,4483.6,1.3711]
[1759864528029,4.40622691,4483.7,4483.6,2.1464]
[1759864528515,4.407829,4483.7,4483.6,2.1464]
[1759864528923,4.9041488,4483.7,4483.6,2.1464]
[1759864529125,1.6963488,4483.7,4483.6,2.1464]
[1759864529326,0.49792189,4483.7,4483.6,2.1464]
[1759864529523,1.49601831,4484.4,4484.2,2.32264]
[1759864529729,1.09255677,4484.5,4484.4,2.32263]
[1759864530023,3.2078,4484.8,4484.7,2.3226]
[1759864530230,1.99788302,4485.1,4485.0,2.65707]
[1759864530428,0.5317,4485.1,4485.0,2.25144519]
[1759864530623,3.44035361,4485.1,4485.0,2.65261519]
[1759864531927,1.0486,4484.2,4484.1,4.12545]
[1759864532231,1.0486,4484.2,4484.1,4.90075]
[1759864532425,1.0486,4484.2,4484.1,5.75545]
[1759864532729,0.5317,4484.2,4484.1,5.75545]
[1759864533529,0.5317,4484.7,4484.6,1.9214]
[1759864533723,0.5317,4484.7,4484.6,2.32261]
[1759864533919,3.47343546,4484.7,4484.6,2.32261]
[1759864534622,3.2078,4484.9,4484.8,1.46789]
[1759864534827,3.2078,4484.9,4484.8,2.32259]
[1759864535024,0.225,4485.0,4484.8,1.46789]
[1759864535329,3.40903561,4484.9,4484.8,1.46789]
[1759864535626,3.92593561,4484.9,4484.8,2.32259]
[1759864535828,3.92593561,4484.9,4484.7,0.225]
[1759864535829,1.8199,4484.7,4484.6,1.77231]
[1759864536230,4.77566726,4484.7,4484.6,1.77231]
[1759864536529,4.00436726,4484.7,4484.6,2.32261]
[1759864536920,4.77566726,4484.7,4484.6,2.32261]
[1759864537532,4.77566726,4484.7,4484.6,1.77231]
[1759864537725,5.00066726,4484.7,4484.6,1.77231]
[1759864538032,4.77566726,4484.7,4484.6,1.77231]
[1759864538329,5.00066726,4484.7,4484.6,1.77231]
[1759864538528,4.77566726,4484.7,4484.6,1.77231]
[1759864538730,5.00066726,4484.7,4484.6,1.77231]
[1759864539033,1.98533717,4485.1,4485.0,2.61177]
[1759864539224,1.13083717,4485.1,4485.0,2.61177]
[1759864539424,3.49765473,4485.1,4485.0,2.61177]
[1759864539932,2.93775473,4485.1,4485.0,2.61177]
[1759864540230,2.93775473,4485.1,4485.0,2.83677]
[1759864540726,3.49765473,4485.1,4485.0,2.83677]
[1759864541425,2.93775473,4485.1,4485.0,2.83677]
[1759864541627,3.40243655,4485.1,4485.0,2.83677]
[1759864543026,0.46701899,4485.1,4485.0,2.83677]
[1759864543834,0.00233717,4485.1,4485.0,2.83677]
[1759864546332,0.00233717,4485.1,4485.0,43.63677]
[1759864553328,0.00233717,4485.1,4485.0,2.83677]
[1759864558135,1.94363717,4485.1,4485.0,2.83677]
[1759864558737,1.94363717,4485.1,4485.0,2.49637]
[1759864559244,5.2636176,4485.1,4485.0,0.40117]
[1759864559536,5.2636176,4485.1,4484.5,1.33753]
[1759864559537,0.5623,4484.3,4484.2,0.8399]
[1759864559741,1.9413,4484.3,4484.2,1.77044]
[1759864559937,4.86012043,4484.3,4484.2,2.32994]
[1759864560134,4.03312043,4484.3,4484.2,2.32994]
[1759864560742,4.86012043,4484.3,4484.2,0.40124]
[1759864560947,0.827,4484.1,4484.0,0.40125]
[1759864561143,0.827,4484.0,4483.7,0.8399]
[1759864561447,0.5623,4484.0,4483.9,2.32996]
[1759864561844,3.49196603,4484.0,4483.9,2.32996]
[1759864562044,4.04396603,4484.0,4483.9,2.32996]
[1759864562245,4.87096603,4484.0,4483.9,2.32996]
[1759864563643,4.04396603,4484.0,4483.9,2.32996]
[1759864564148,2.92966603,4484.0,4483.9,2.32996]
[1759864564548,4.22735819,4484.3,4484.2,1.77044]
[1759864564749,1.3383,4484.3,4484.2,1.77044]
[1759864564951,4.22735819,4484.3,4484.2,2.32994]
[1759864565145,0.827,4485.0,4484.2,1.9287]
[1759864565346,0.827,4485.0,4484.9,2.32988]
[1759864565347,1.9413,4485.0,4484.9,2.32988]
[1759864565748,5.04347399,4485.0,4484.9,2.32988]
[1759864565951,4.81947399,4485.0,4484.9,2.32988]
[1759864566243,5.04347399,4485.0,4484.9,2.32988]
[1759864566445,4.81947399,4485.0,4484.9,2.32988]
[1759864566646,3.99247399,4485.0,4484.9,2.32988]
[1759864566851,1.1143,4485.0,4484.9,2.32988]
[1759864567246,1.9413,4485.0,4484.9,2.32988]
[1759864567455,1.95880802,4485.0,4484.9,2.32988]
[1759864567652,1.13180802,4485.0,4484.9,2.32988]
[1759864568550,0.01965115,4485.0,4484.9,1.48998]
[1759864568750,0.01965115,4485.0,4484.9,2.32988]
[1759864569157,0.58195115,4485.0,4484.9,2.32988]
[1759864570654,0.58409418,4485.0,4484.9,2.32988]
[1759864571853,1.96309418,4485.0,4484.9,1.77038]
[1759864572054,4.88374625,4485.0,4484.9,1.77038]
[1759864572254,4.88374625,4485.0,4484.9,0.40118]
[1759864572649,4.88588927,4485.0,4484.9,1.24108]
[1759864572849,5.10888927,4485.0,4484.9,0.40118]
[1759864573250,5.10888927,4485.0,4482.9,11.86297523]
[1759864573446,1.00344,4482.8,4482.5,0.327]
[1759864573749,1.00341,4482.9,4481.5,0.327]
[1759864573750,0.40148,4481.6,4481.5,0.327]
[1759864573948,3.83328,4481.6,4481.5,0.327]
[1759864574256,11.5264869,4481.6,4481.5,0.327]
[1759864574455,11.75304315,4481.6,4481.5,0.32917541]
[1759864574858,12.36643422,4481.6,4481.5,0.32917541]
[1759864575250,12.36643422,4481.6,4481.5,1.16907541]
[1759864576651,12.14243422,4481.6,4481.5,1.16907541]
[1759864577156,12.36643422,4481.6,4481.5,1.16907541]
[1759864577345,12.36798644,4481.6,4481.5,1.16907541]
[1759864577746,12.14398644,4481.6,4481.5,1.16907541]
[1759864577954,12.36898644,4481.6,4481.5,1.16907541]
[1759864581455,12.14398644,4481.6,4481.5,1.16907541]
[1759864581652,12.36898644,4481.6,4481.5,1.16907541]
[1759864582058,12.14398644,4481.6,4481.5,1.16907541]
[1759864582261,12.36898644,4481.6,4481.5,1.16907541]
[1759864583260,7.36898644,4481.6,4481.5,1.69837541]
[1759864583762,7.36898644,4481.6,4481.5,1.16907541]
[1759864584061,7.36898644,4481.6,4481.5,1.82057541]
[1759864584255,7.36898644,4481.6,4481.5,2.45527541]
[1759864585256,7.14398644,4481.6,4481.5,2.45527541]
[1759864585457,7.36898644,4481.6,4481.5,2.45527541]
[1759864585657,6.74250644,4481.6,4481.5,2.45527541]
[1759864585853,6.96750644,4481.6,4481.5,2.45527541]
[1759864586665,6.74250644,4481.6,4481.5,2.45527541]
[1759864586867,6.96750644,4481.6,4481.5,2.45527541]
[1759864589770,7.36898644,4481.6,4481.5,2.85676541]
[1759864589962,7.14398644,4481.6,4481.5,2.85676541]
[1759864590162,6.74250644,4481.6,4481.5,2.85676541]
[1759864590679,6.96750644,4481.6,4481.5,2.85676541]
[1759864591577,7.36898644,4481.6,4481.5,2.85676541]
[1759864591776,7.14398644,4481.6,4481.5,2.85676541]
[1759864592079,7.36898644,4481.6,4481.5,2.85676541]
[1759864593478,6.96750644,4481.6,4481.5,2.85676541]
[1759864594079,7.36898644,4481.6,4481.5,2.85676541]
[1759864594282,7.36898644,4481.6,4481.5,2.45527541]
[1759864594773,7.36898644,4481.6,4481.5,1.16907541]
[1759864595175,0.40152,4481.1,4481.0,1.6132]
[1759864595372,4.44926329,4481.1,4481.0,1.6132]
[1759864595578,7.35047656,4481.1,4481.0,1.6132]
[1759864596079,7.35047656,4481.1,4481.0,1.61594571]
[1759864597079,7.35047656,4481.1,4481.0,2.63124571]
[1759864598381,8.54877358,4481.1,4481.0,2.63124571]
[1759864598777,8.32377358,4481.1,4481.0,2.63124571]
[1759864598986,8.54877358,4481.1,4481.0,2.63124571]
[1759864599279,5.02104031,4481.1,4481.0,2.63124571]
[1759864599483,3.82274329,4481.1,4481.0,7.63124571]
[1759864601273,5.02104031,4481.1,4481.0,7.63124571]
[1759864602274,3.82274329,4481.1,4481.0,2.63124571]
[1759864602988,6.66860958,4481.1,4481.0,1.34504571]
[1759864603280,6.66860958,4481.1,4481.0,1.0153]
[1759864603481,6.66860958,4481.1,4481.0,0.13969887]